[Event "Chessable Masters - Torneo preliminare"]
[White "Vokhidov, Shamsiddin"]
[Black "Makarian, Rudik"]
[WhiteFideId "14204223"]
[BlackFideId "44105681"]
[WhiteElo "2514"]
[BlackElo "2462"]
[Result "0-1"]
[Round "3"]
[TimeControl "600+2"]
[Date "2023.03.13"]
[WhiteClock "0:00:48"]
[BlackClock "0:00:10"]

1. e4 {[%clk 0:09:59]}  c5 {[%clk 0:10:00]} 2. Nf3 {[%clk 0:10:00]}  Nc6 {[%clk 0:09:59]} 3. Bb5 {[%clk 0:10:00]}  e6 {[%clk 0:10:00]} 4. Bxc6 {[%clk 0:10:01]}  bxc6 {[%clk 0:10:02]} 5. d3 {[%clk 0:10:02]}  Bd6 {[%clk 0:10:00]} 6. Be3 {[%clk 0:09:36]}  Ne7 {[%clk 0:09:39]} 7. e5 {[%clk 0:09:33]}  Bc7 {[%clk 0:09:40]} 8. Bxc5 {[%clk 0:09:33]}  O-O {[%clk 0:09:42]} 9. Nbd2 {[%clk 0:09:24]}  f6 {[%clk 0:09:19]} 10. d4 {[%clk 0:09:24]}  fxe5 {[%clk 0:09:15]} 11. dxe5 {[%clk 0:09:23]}  Rf5 {[%clk 0:08:49]} 12. Nc4 {[%clk 0:08:22]}  Ba6 {[%clk 0:07:08]} 13. Ne3 {[%clk 0:08:20]}  Rf4 {[%clk 0:06:30]} 14. Qd2 {[%clk 0:08:12]}  Re4 {[%clk 0:05:33]} 15. O-O-O {[%clk 0:06:52]}  Nd5 {[%clk 0:05:33]} 16. Nxd5 {[%clk 0:06:17]}  cxd5 {[%clk 0:05:32]} 17. Rhe1 {[%clk 0:06:18]}  Ba5 {[%clk 0:04:55]} 18. b4 {[%clk 0:06:16]}  Rc4 {[%clk 0:04:52]} 19. c3 {[%clk 0:05:45]}  Rc8 {[%clk 0:04:22]} 20. Re3 {[%clk 0:04:46]}  Bxb4 {[%clk 0:04:10]} 21. Bxb4 {[%clk 0:04:46]}  Rxb4 {[%clk 0:04:12]} 22. Qc2 {[%clk 0:04:48]}  Qa5 {[%clk 0:03:41]} 23. Rd2 {[%clk 0:04:18]}  Rb7 {[%clk 0:03:12]} 24. Ng5 {[%clk 0:04:05]}  g6 {[%clk 0:02:16]} 25. Nxh7 {[%clk 0:04:05]}  Kxh7 {[%clk 0:02:05]} 26. Rg3 {[%clk 0:04:07]}  Bd3 {[%clk 0:00:48]} 27. Qxd3 {[%clk 0:02:28]}  Rxc3+ {[%clk 0:00:47]} 28. Qxc3 {[%clk 0:02:30]}  Rc7 {[%clk 0:00:49]} 29. Rc2 {[%clk 0:02:00]}  Rxc3 {[%clk 0:00:50]} 30. Rgxc3 {[%clk 0:02:01]}  d4 {[%clk 0:00:42]} 31. Rh3+ {[%clk 0:01:46]}  Kg7 {[%clk 0:00:40]} 32. f4 {[%clk 0:01:48]}  Qe1+ {[%clk 0:00:25]} 33. Kb2 {[%clk 0:01:48]}  Qe4 {[%clk 0:00:21]} 34. Rf3 {[%clk 0:00:59]}  d3 {[%clk 0:00:21]} 35. Rc7 {[%clk 0:00:52]}  Qd4+ {[%clk 0:00:09]} 36. Kc1 {[%clk 0:00:48]}  Qg1+ {[%clk 0:00:10]} 0-1


[Site "Internet"]

[Event "Chessable Masters - Torneo preliminare"]
[White "Dreev, Aleksey"]
[Black "Flores, Diego"]
[WhiteFideId "4100107"]
[BlackFideId "108049"]
[WhiteElo "2557"]
[BlackElo "2598"]
[Result "1-0"]
[Round "3"]
[TimeControl "600+2"]
[Date "2023.03.13"]
[WhiteClock "0:02:00"]
[BlackClock "0:00:10"]

1. d4 {[%clk 0:09:48]}  Nf6 {[%clk 0:10:00]} 2. c4 {[%clk 0:09:48]}  c5 {[%clk 0:09:44]} 3. d5 {[%clk 0:09:48]}  e6 {[%clk 0:09:45]} 4. Nc3 {[%clk 0:09:49]}  exd5 {[%clk 0:09:46]} 5. cxd5 {[%clk 0:09:50]}  d6 {[%clk 0:09:48]} 6. Nf3 {[%clk 0:09:49]}  g6 {[%clk 0:09:48]} 7. e4 {[%clk 0:09:36]}  Bg7 {[%clk 0:09:47]} 8. Nd2 {[%clk 0:09:35]}  O-O {[%clk 0:09:46]} 9. Be2 {[%clk 0:09:36]}  Re8 {[%clk 0:09:45]} 10. O-O {[%clk 0:09:35]}  a6 {[%clk 0:09:46]} 11. a4 {[%clk 0:09:35]}  Nbd7 {[%clk 0:09:47]} 12. h3 {[%clk 0:09:18]}  Rb8 {[%clk 0:09:30]} 13. a5 {[%clk 0:08:53]}  c4 {[%clk 0:06:47]} 14. Nxc4 {[%clk 0:08:34]}  Nxe4 {[%clk 0:06:46]} 15. Nxe4 {[%clk 0:07:52]}  Rxe4 {[%clk 0:06:48]} 16. Nxd6 {[%clk 0:07:19]}  Rd4 {[%clk 0:06:46]} 17. Qb3 {[%clk 0:06:53]}  Nc5 {[%clk 0:04:55]} 18. Qg3 {[%clk 0:06:50]}  Qc7 {[%clk 0:03:12]} 19. Rd1 {[%clk 0:04:29]}  Rxd1+ {[%clk 0:01:38]} 20. Bxd1 {[%clk 0:04:29]}  Bf8 {[%clk 0:01:34]} 21. Bf4 {[%clk 0:03:52]}  Nd3 {[%clk 0:01:34]} 22. Qxd3 {[%clk 0:03:25]}  Bxd6 {[%clk 0:01:34]} 23. Rc1 {[%clk 0:03:25]}  Qd8 {[%clk 0:01:30]} 24. Bxd6 {[%clk 0:03:23]}  Qxd6 {[%clk 0:01:32]} 25. Qd4 {[%clk 0:03:08]}  Be6 {[%clk 0:00:50]} 26. Bf3 {[%clk 0:03:06]}  Rd8 {[%clk 0:00:50]} 27. Qc5 {[%clk 0:02:56]}  Qxc5 {[%clk 0:00:36]} 28. Rxc5 {[%clk 0:02:55]}  Bc8 {[%clk 0:00:37]} 29. Rc7 {[%clk 0:02:33]}  Kg7 {[%clk 0:00:28]} 30. d6 {[%clk 0:02:10]}  Be6 {[%clk 0:00:22]} 31. Rxb7 {[%clk 0:02:08]}  Rxd6 {[%clk 0:00:23]} 32. Rb6 {[%clk 0:02:10]}  Rd2 {[%clk 0:00:22]} 33. Bb7 {[%clk 0:02:01]}  Bc4 {[%clk 0:00:20]} 34. b3 {[%clk 0:02:01]}  Bb5 {[%clk 0:00:17]} 35. Bxa6 {[%clk 0:02:00]}  Bxa6 {[%clk 0:00:10]} 36. Rxa6 {[%clk 0:02:00]} 1-0


[Site "Internet"]

[Event "Chessable Masters - Torneo preliminare"]
[White "Bluebaum, Matthias"]
[Black "Fier, Alexandr"]
[WhiteFideId "24651516"]
[BlackFideId "2107139"]
[WhiteElo "2601"]
[BlackElo "2504"]
[Result "1-0"]
[Round "3"]
[TimeControl "600+2"]
[Date "2023.03.13"]
[WhiteClock "0:03:32"]
[BlackClock "0:04:11"]

1. d4 {[%clk 0:10:01]}  d5 {[%clk 0:10:00]} 2. c4 {[%clk 0:10:02]}  e6 {[%clk 0:10:01]} 3. Nc3 {[%clk 0:10:04]}  c6 {[%clk 0:10:03]} 4. Nf3 {[%clk 0:10:04]}  dxc4 {[%clk 0:10:03]} 5. e4 {[%clk 0:10:05]}  b5 {[%clk 0:10:03]} 6. Qc2 {[%clk 0:10:07]}  Nf6 {[%clk 0:09:59]} 7. Be2 {[%clk 0:10:08]}  a5 {[%clk 0:09:57]} 8. O-O {[%clk 0:09:33]}  a4 {[%clk 0:09:56]} 9. Rd1 {[%clk 0:08:59]}  Be7 {[%clk 0:09:43]} 10. Bg5 {[%clk 0:08:53]}  Bb7 {[%clk 0:09:28]} 11. e5 {[%clk 0:07:30]}  Nd5 {[%clk 0:09:27]} 12. Ne4 {[%clk 0:07:31]}  Ra7 {[%clk 0:08:37]} 13. Nd6+ {[%clk 0:07:13]}  Kf8 {[%clk 0:08:38]} 14. Bxe7+ {[%clk 0:07:12]}  Qxe7 {[%clk 0:08:39]} 15. b3 {[%clk 0:06:50]}  c3 {[%clk 0:07:16]} 16. b4 {[%clk 0:06:19]}  Na6 {[%clk 0:06:59]} 17. a3 {[%clk 0:06:19]}  Nac7 {[%clk 0:06:58]} 18. Ne1 {[%clk 0:06:02]}  f5 {[%clk 0:06:20]} 19. Nd3 {[%clk 0:05:48]}  Ne8 {[%clk 0:05:46]} 20. Nxe8 {[%clk 0:05:47]}  Kxe8 {[%clk 0:05:46]} 21. Bf3 {[%clk 0:05:48]}  c5 {[%clk 0:05:27]} 22. bxc5 {[%clk 0:05:14]}  Qg5 {[%clk 0:05:26]} 23. Qc1 {[%clk 0:05:03]}  Qh4 {[%clk 0:05:21]} 24. Bxd5 {[%clk 0:04:26]}  Bxd5 {[%clk 0:05:19]} 25. Nb4 {[%clk 0:04:28]}  Bb3 {[%clk 0:05:14]} 26. Rd3 {[%clk 0:04:23]}  Bc4 {[%clk 0:05:01]} 27. Qxc3 {[%clk 0:03:39]}  Bxd3 {[%clk 0:05:00]} 28. Qxd3 {[%clk 0:03:41]}  Kf7 {[%clk 0:04:59]} 29. d5 {[%clk 0:03:36]}  Rc8 {[%clk 0:04:35]} 30. c6 {[%clk 0:03:32]}  exd5 {[%clk 0:04:11]} 31. Qxf5+ {[%clk 0:03:32]} 1-0


[Site "Internet"]

[Event "Chessable Masters - Torneo preliminare"]
[White "Nguyen, Ngoc Truong Son"]
[Black "Cardoso Cardoso, Jose Gabriel"]
[WhiteFideId "12401110"]
[BlackFideId "4430492"]
[WhiteElo "2585"]
[BlackElo "2425"]
[Result "1/2-1/2"]
[Round "3"]
[TimeControl "600+2"]
[Date "2023.03.13"]
[WhiteClock "0:02:49"]
[BlackClock "0:02:37"]

1. d4 {[%clk 0:10:00]}  Nf6 {[%clk 0:09:51]} 2. c4 {[%clk 0:09:59]}  e6 {[%clk 0:09:51]} 3. Nc3 {[%clk 0:09:59]}  Bb4 {[%clk 0:09:52]} 4. e3 {[%clk 0:10:00]}  O-O {[%clk 0:09:52]} 5. Bd2 {[%clk 0:09:59]}  d5 {[%clk 0:09:50]} 6. a3 {[%clk 0:09:59]}  Be7 {[%clk 0:09:06]} 7. Nf3 {[%clk 0:09:58]}  b6 {[%clk 0:08:37]} 8. Rc1 {[%clk 0:09:56]}  c5 {[%clk 0:08:33]} 9. Bd3 {[%clk 0:09:23]}  Ba6 {[%clk 0:07:33]} 10. Qe2 {[%clk 0:09:18]}  cxd4 {[%clk 0:07:33]} 11. exd4 {[%clk 0:09:14]}  dxc4 {[%clk 0:07:23]} 12. Bxc4 {[%clk 0:09:06]}  Bxc4 {[%clk 0:07:22]} 13. Qxc4 {[%clk 0:09:08]}  Nbd7 {[%clk 0:07:05]} 14. O-O {[%clk 0:09:07]}  Qb8 {[%clk 0:06:42]} 15. d5 {[%clk 0:08:52]}  exd5 {[%clk 0:06:27]} 16. Nxd5 {[%clk 0:08:51]}  Nxd5 {[%clk 0:06:25]} 17. Qxd5 {[%clk 0:08:52]}  Nf6 {[%clk 0:06:26]} 18. Qf5 {[%clk 0:08:47]}  Qb7 {[%clk 0:06:16]} 19. Rfe1 {[%clk 0:08:40]}  Rfe8 {[%clk 0:06:05]} 20. Bc3 {[%clk 0:08:31]}  h6 {[%clk 0:05:13]} 21. Rcd1 {[%clk 0:07:28]}  Rad8 {[%clk 0:05:07]} 22. h3 {[%clk 0:06:02]}  Qc8 {[%clk 0:04:34]} 23. Qxc8 {[%clk 0:04:44]}  Rxc8 {[%clk 0:04:36]} 24. Rd3 {[%clk 0:04:43]}  Red8 {[%clk 0:03:47]} 25. Rde3 {[%clk 0:04:24]}  Bc5 {[%clk 0:03:32]} 26. Bxf6 {[%clk 0:04:23]}  gxf6 {[%clk 0:03:33]} 27. Rc3 {[%clk 0:04:12]}  Bd6 {[%clk 0:03:09]} 28. Rxc8 {[%clk 0:03:23]}  Rxc8 {[%clk 0:03:11]} 29. Kf1 {[%clk 0:03:24]}  Rc2 {[%clk 0:02:33]} 30. Re2 {[%clk 0:03:02]}  Rc1+ {[%clk 0:02:34]} 31. Re1 {[%clk 0:03:02]}  Rc2 {[%clk 0:02:35]} 32. Re2 {[%clk 0:02:47]}  Rc1+ {[%clk 0:02:36]} 33. Re1 {[%clk 0:02:49]}  Rc2 {[%clk 0:02:37]} 1/2-1/2


[Site "Internet"]

[Event "Chessable Masters - Torneo preliminare"]
[White "Mareco, Sandro"]
[Black "Darini, Pouria"]
[WhiteFideId "112275"]
[BlackFideId "12502200"]
[WhiteElo "2541"]
[BlackElo "2573"]
[Result "1-0"]
[Round "3"]
[TimeControl "600+2"]
[Date "2023.03.13"]
[WhiteClock "0:04:34"]
[BlackClock "0:00:07"]

1. d4 {[%clk 0:10:01]}  Nf6 {[%clk 0:10:00]} 2. c4 {[%clk 0:10:02]}  e6 {[%clk 0:09:57]} 3. Nf3 {[%clk 0:10:03]}  d5 {[%clk 0:09:57]} 4. g3 {[%clk 0:10:04]}  Bb4+ {[%clk 0:09:55]} 5. Bd2 {[%clk 0:10:04]}  a5 {[%clk 0:09:56]} 6. Bg2 {[%clk 0:10:03]}  O-O {[%clk 0:09:56]} 7. Qc2 {[%clk 0:10:03]}  c5 {[%clk 0:09:57]} 8. cxd5 {[%clk 0:09:40]}  cxd4 {[%clk 0:09:57]} 9. Nxd4 {[%clk 0:09:35]}  Qb6 {[%clk 0:09:58]} 10. e3 {[%clk 0:09:09]}  exd5 {[%clk 0:09:54]} 11. a3 {[%clk 0:09:10]}  Bc5 {[%clk 0:08:36]} 12. Bc3 {[%clk 0:08:54]}  Ne4 {[%clk 0:07:52]} 13. O-O {[%clk 0:08:53]}  Nc6 {[%clk 0:06:55]} 14. Nd2 {[%clk 0:08:30]}  Nxd4 {[%clk 0:06:05]} 15. exd4 {[%clk 0:08:30]}  Bxd4 {[%clk 0:06:06]} 16. Nxe4 {[%clk 0:08:31]}  dxe4 {[%clk 0:06:05]} 17. Bxe4 {[%clk 0:08:31]}  Bxc3 {[%clk 0:05:57]} 18. bxc3 {[%clk 0:08:32]}  g6 {[%clk 0:05:37]} 19. Rfb1 {[%clk 0:08:31]}  Qc5 {[%clk 0:05:26]} 20. a4 {[%clk 0:08:30]}  Ra6 {[%clk 0:02:56]} 21. Bxb7 {[%clk 0:07:57]}  Bxb7 {[%clk 0:01:28]} 22. Rxb7 {[%clk 0:07:55]}  Rc8 {[%clk 0:01:28]} 23. Rb3 {[%clk 0:07:51]}  Rac6 {[%clk 0:01:22]} 24. h4 {[%clk 0:07:45]}  h5 {[%clk 0:01:19]} 25. Re1 {[%clk 0:06:59]}  Qc4 {[%clk 0:01:03]} 26. Rb7 {[%clk 0:06:52]}  R6c7 {[%clk 0:00:49]} 27. Rxc7 {[%clk 0:06:50]}  Rxc7 {[%clk 0:00:50]} 28. Re3 {[%clk 0:06:51]}  Rb7 {[%clk 0:00:37]} 29. Kg2 {[%clk 0:06:28]}  Qc6+ {[%clk 0:00:27]} 30. Qe4 {[%clk 0:06:28]}  Rc7 {[%clk 0:00:22]} 31. Qxc6 {[%clk 0:06:15]}  Rxc6 {[%clk 0:00:23]} 32. Re5 {[%clk 0:06:16]}  Rxc3 {[%clk 0:00:24]} 33. Rxa5 {[%clk 0:06:16]}  Ra3 {[%clk 0:00:25]} 34. Ra8+ {[%clk 0:06:05]}  Kg7 {[%clk 0:00:26]} 35. a5 {[%clk 0:06:06]}  f6 {[%clk 0:00:20]} 36. Ra7+ {[%clk 0:06:06]}  Kh6 {[%clk 0:00:20]} 37. a6 {[%clk 0:06:03]}  g5 {[%clk 0:00:20]} 38. hxg5+ {[%clk 0:05:59]}  fxg5 {[%clk 0:00:21]} 39. Ra8 {[%clk 0:05:54]}  Kg7 {[%clk 0:00:17]} 40. f4 {[%clk 0:05:14]}  h4 {[%clk 0:00:10]} 41. f5 {[%clk 0:04:39]}  Rxg3+ {[%clk 0:00:11]} 42. Kh2 {[%clk 0:04:40]}  g4 {[%clk 0:00:03]} 43. a7 {[%clk 0:04:41]}  Rh3+ {[%clk 0:00:04]} 44. Kg2 {[%clk 0:04:41]}  Rg3+ {[%clk 0:00:06]} 45. Kf2 {[%clk 0:04:37]}  Rf3+ {[%clk 0:00:07]} 46. Ke2 {[%clk 0:04:38]}  Ra3 {[%clk 0:00:07]} 47. f6+ {[%clk 0:04:36]}  Kxf6 {[%clk 0:00:05]} 48. Rf8+ {[%clk 0:04:36]}  Kg5 {[%clk 0:00:07]} 49. a8=Q {[%clk 0:04:37]}  Rxa8 {[%clk 0:00:08]} 50. Rxa8 {[%clk 0:04:37]}  Kf4 {[%clk 0:00:07]} 51. Kf2 {[%clk 0:04:34]} 1-0


[Site "Internet"]

[Event "Chessable Masters - Torneo preliminare"]
[White "Petrov, Nikita"]
[Black "Pap, Gyula"]
[WhiteFideId "4101286"]
[BlackFideId "725323"]
[WhiteElo "2514"]
[BlackElo "2563"]
[Result "0-1"]
[Round "3"]
[TimeControl "600+2"]
[Date "2023.03.13"]
[WhiteClock "0:00:02"]
[BlackClock "0:00:06"]

1. d4 {[%clk 0:10:01]}  d5 {[%clk 0:09:58]} 2. Nf3 {[%clk 0:09:59]}  Nf6 {[%clk 0:09:58]} 3. Bf4 {[%clk 0:10:00]}  c5 {[%clk 0:09:57]} 4. e3 {[%clk 0:10:01]}  Nc6 {[%clk 0:09:54]} 5. Nbd2 {[%clk 0:10:01]}  Nh5 {[%clk 0:09:44]} 6. dxc5 {[%clk 0:09:44]}  Nxf4 {[%clk 0:09:44]} 7. exf4 {[%clk 0:09:46]}  g6 {[%clk 0:09:46]} 8. c3 {[%clk 0:09:44]}  Bg7 {[%clk 0:09:44]} 9. Nb3 {[%clk 0:09:30]}  O-O {[%clk 0:09:23]} 10. Be2 {[%clk 0:09:29]}  Qc7 {[%clk 0:07:36]} 11. g3 {[%clk 0:08:49]}  Rd8 {[%clk 0:07:24]} 12. O-O {[%clk 0:08:47]}  f6 {[%clk 0:05:21]} 13. Nfd4 {[%clk 0:06:21]}  e5 {[%clk 0:04:21]} 14. fxe5 {[%clk 0:06:21]}  fxe5 {[%clk 0:04:23]} 15. Nb5 {[%clk 0:06:22]}  Qe7 {[%clk 0:04:19]} 16. Bg4 {[%clk 0:06:16]}  Bxg4 {[%clk 0:03:38]} 17. Qxg4 {[%clk 0:06:18]}  e4 {[%clk 0:03:39]} 18. N5d4 {[%clk 0:05:32]}  Re8 {[%clk 0:03:23]} 19. Rad1 {[%clk 0:04:39]}  Ne5 {[%clk 0:02:30]} 20. Qe2 {[%clk 0:04:38]}  Nd3 {[%clk 0:02:26]} 21. c6 {[%clk 0:04:13]}  bxc6 {[%clk 0:02:25]} 22. Nxc6 {[%clk 0:04:15]}  Qb7 {[%clk 0:02:06]} 23. Nb4 {[%clk 0:03:26]}  Nxb4 {[%clk 0:01:42]} 24. cxb4 {[%clk 0:03:28]}  Rad8 {[%clk 0:01:44]} 25. Nd4 {[%clk 0:03:23]}  Qb6 {[%clk 0:01:19]} 26. Qd2 {[%clk 0:03:23]}  Rc8 {[%clk 0:01:00]} 27. a3 {[%clk 0:02:40]}  Rc4 {[%clk 0:00:53]} 28. Nb3 {[%clk 0:02:41]}  d4 {[%clk 0:00:45]} 29. Nc5 {[%clk 0:02:42]}  d3 {[%clk 0:00:34]} 30. Rc1 {[%clk 0:02:11]}  Rxc1 {[%clk 0:00:35]} 31. Rxc1 {[%clk 0:02:11]}  Bd4 {[%clk 0:00:35]} 32. Kg2 {[%clk 0:00:33]}  Qc6 {[%clk 0:00:36]} 33. Nb3 {[%clk 0:00:13]}  e3+ {[%clk 0:00:12]} 34. Rxc6 {[%clk 0:00:13]}  exd2 {[%clk 0:00:14]} 35. Nxd2 {[%clk 0:00:14]}  Re2 {[%clk 0:00:15]} 36. Rd6 {[%clk 0:00:05]}  Bxf2 {[%clk 0:00:07]} 37. Nc4 {[%clk 0:00:02]}  Bc5+ {[%clk 0:00:06]} 0-1


[Site "Internet"]

[Event "Chessable Masters - Torneo preliminare"]
[White "Giri, Anish"]
[Black "Sargissian, Gabriel"]
[WhiteFideId "24116068"]
[BlackFideId "13300881"]
[WhiteElo "2714"]
[BlackElo "2628"]
[Result "1-0"]
[Round "3"]
[TimeControl "600+2"]
[Date "2023.03.13"]
[WhiteClock "0:03:26"]
[BlackClock "0:01:53"]

1. e4 {[%clk 0:10:01]}  e5 {[%clk 0:09:54]} 2. Nf3 {[%clk 0:10:02]}  Nc6 {[%clk 0:09:54]} 3. Bc4 {[%clk 0:10:04]}  Nf6 {[%clk 0:09:54]} 4. d3 {[%clk 0:10:05]}  Bc5 {[%clk 0:09:55]} 5. O-O {[%clk 0:10:07]}  d6 {[%clk 0:09:55]} 6. c3 {[%clk 0:10:08]}  O-O {[%clk 0:09:56]} 7. Nbd2 {[%clk 0:10:07]}  a5 {[%clk 0:09:55]} 8. h3 {[%clk 0:10:05]}  Ba7 {[%clk 0:09:41]} 9. Re1 {[%clk 0:09:59]}  Be6 {[%clk 0:09:39]} 10. Bxe6 {[%clk 0:10:00]}  fxe6 {[%clk 0:09:40]} 11. Nf1 {[%clk 0:10:02]}  Qd7 {[%clk 0:09:33]} 12. Ng3 {[%clk 0:09:58]}  a4 {[%clk 0:09:30]} 13. Rb1 {[%clk 0:09:46]}  Bb6 {[%clk 0:09:25]} 14. Be3 {[%clk 0:09:34]}  Bxe3 {[%clk 0:09:25]} 15. Rxe3 {[%clk 0:09:36]}  b5 {[%clk 0:09:22]} 16. d4 {[%clk 0:09:36]}  Qe7 {[%clk 0:09:05]} 17. Qe2 {[%clk 0:09:35]}  Rab8 {[%clk 0:08:57]} 18. b3 {[%clk 0:09:24]}  axb3 {[%clk 0:08:58]} 19. Rxb3 {[%clk 0:09:24]}  b4 {[%clk 0:06:29]} 20. dxe5 {[%clk 0:09:20]}  dxe5 {[%clk 0:06:00]} 21. Qe1 {[%clk 0:08:59]}  Nd7 {[%clk 0:05:31]} 22. cxb4 {[%clk 0:08:46]}  Nd4 {[%clk 0:05:32]} 23. Rbc3 {[%clk 0:08:38]}  Qxb4 {[%clk 0:05:24]} 24. Rxc7 {[%clk 0:08:06]}  Nxf3+ {[%clk 0:05:25]} 25. gxf3 {[%clk 0:08:06]}  Qxe1+ {[%clk 0:05:26]} 26. Rxe1 {[%clk 0:08:07]}  Rf7 {[%clk 0:04:39]} 27. a4 {[%clk 0:07:47]}  Ra8 {[%clk 0:04:26]} 28. Ra1 {[%clk 0:07:45]}  Nb6 {[%clk 0:04:27]} 29. Rc6 {[%clk 0:06:52]}  Rxa4 {[%clk 0:04:20]} 30. Rxa4 {[%clk 0:06:42]}  Nxa4 {[%clk 0:04:22]} 31. Rxe6 {[%clk 0:06:42]}  Rxf3 {[%clk 0:04:06]} 32. Rxe5 {[%clk 0:06:43]}  g6 {[%clk 0:04:07]} 33. Kg2 {[%clk 0:06:29]}  Rf8 {[%clk 0:04:06]} 34. h4 {[%clk 0:06:07]}  h5 {[%clk 0:03:38]} 35. Ne2 {[%clk 0:06:07]}  Nb2 {[%clk 0:03:35]} 36. Rd5 {[%clk 0:06:05]}  Nc4 {[%clk 0:03:35]} 37. Kg3 {[%clk 0:06:01]}  Kg7 {[%clk 0:03:24]} 38. Nf4 {[%clk 0:05:55]}  Re8 {[%clk 0:03:22]} 39. Rg5 {[%clk 0:04:33]}  Rxe4 {[%clk 0:03:18]} 40. Rxg6+ {[%clk 0:04:34]}  Kf7 {[%clk 0:03:16]} 41. Rg5 {[%clk 0:04:36]}  Re5 {[%clk 0:02:17]} 42. Rxh5 {[%clk 0:04:11]}  Re1 {[%clk 0:02:11]} 43. Rf5+ {[%clk 0:03:44]}  Kg7 {[%clk 0:02:09]} 44. Rd5 {[%clk 0:03:31]}  Rg1+ {[%clk 0:02:04]} 45. Kf3 {[%clk 0:03:29]}  Nb6 {[%clk 0:01:53]} 46. Rg5+ {[%clk 0:03:24]}  Rxg5 {[%clk 0:01:53]} 47. hxg5 {[%clk 0:03:26]} 1-0


[Site "Internet"]

[Event "Chessable Masters - Torneo preliminare"]
[White "Alonso Rosell, Alvar"]
[Black "Sychev, Klementy"]
[WhiteFideId "2270544"]
[BlackFideId "4114060"]
[WhiteElo "2473"]
[BlackElo "2484"]
[Result "1-0"]
[Round "3"]
[TimeControl "600+2"]
[Date "2023.03.13"]
[WhiteClock "0:03:01"]
[BlackClock "0:00:03"]

1. d4 {[%clk 0:10:01]}  Nf6 {[%clk 0:09:50]} 2. c4 {[%clk 0:10:02]}  e6 {[%clk 0:09:51]} 3. Nf3 {[%clk 0:10:02]}  d5 {[%clk 0:09:51]} 4. g3 {[%clk 0:10:03]}  Bb4+ {[%clk 0:09:43]} 5. Nc3 {[%clk 0:09:58]}  O-O {[%clk 0:09:42]} 6. Bg2 {[%clk 0:09:59]}  dxc4 {[%clk 0:09:42]} 7. O-O {[%clk 0:09:59]}  Nc6 {[%clk 0:09:44]} 8. a3 {[%clk 0:10:01]}  Be7 {[%clk 0:09:38]} 9. e4 {[%clk 0:10:01]}  Na5 {[%clk 0:09:31]} 10. Be3 {[%clk 0:10:01]}  a6 {[%clk 0:09:05]} 11. Qc2 {[%clk 0:10:01]}  b5 {[%clk 0:08:52]} 12. d5 {[%clk 0:10:01]}  exd5 {[%clk 0:08:32]} 13. Rad1 {[%clk 0:10:00]}  Bg4 {[%clk 0:07:30]} 14. h3 {[%clk 0:09:48]}  Bd7 {[%clk 0:05:50]} 15. e5 {[%clk 0:09:23]}  c6 {[%clk 0:05:51]} 16. Ng5 {[%clk 0:06:35]}  g6 {[%clk 0:05:50]} 17. exf6 {[%clk 0:05:28]}  Bxf6 {[%clk 0:05:52]} 18. Nxd5 {[%clk 0:05:21]}  cxd5 {[%clk 0:05:54]} 19. Rxd5 {[%clk 0:05:20]}  Qc8 {[%clk 0:04:13]} 20. Ne4 {[%clk 0:04:08]}  Bg7 {[%clk 0:04:05]} 21. Bd4 {[%clk 0:03:54]}  Bxd4 {[%clk 0:01:17]} 22. Rxd4 {[%clk 0:03:53]}  Bf5 {[%clk 0:01:07]} 23. Nf6+ {[%clk 0:03:38]}  Kh8 {[%clk 0:00:42]} 24. Rh4 {[%clk 0:03:09]}  h5 {[%clk 0:00:04]} 25. Qc3 {[%clk 0:03:05]}  Qd8 {[%clk 0:00:03]} 26. Nxh5+ {[%clk 0:03:01]} 1-0


[Site "Internet"]

[Event "Chessable Masters - Torneo preliminare"]
[White "Kramnik, Vladimir"]
[Black "Shimanov, Aleksandr"]
[WhiteFideId "4101588"]
[BlackFideId "4198603"]
[WhiteElo "2756"]
[BlackElo "2610"]
[Result "1-0"]
[Round "3"]
[TimeControl "600+2"]
[Date "2023.03.13"]
[WhiteClock "0:06:05"]
[BlackClock "0:03:38"]

1. c4 {[%clk 0:10:01]}  g6 {[%clk 0:09:52]} 2. Nc3 {[%clk 0:10:02]}  Bg7 {[%clk 0:09:52]} 3. g3 {[%clk 0:10:02]}  e5 {[%clk 0:09:23]} 4. Bg2 {[%clk 0:10:02]}  Ne7 {[%clk 0:09:23]} 5. d3 {[%clk 0:09:59]}  d6 {[%clk 0:09:20]} 6. e3 {[%clk 0:09:53]}  O-O {[%clk 0:09:14]} 7. Nge2 {[%clk 0:09:53]}  Nbc6 {[%clk 0:09:08]} 8. O-O {[%clk 0:09:49]}  Bg4 {[%clk 0:08:53]} 9. h3 {[%clk 0:09:33]}  Be6 {[%clk 0:08:53]} 10. Nd5 {[%clk 0:09:01]}  Qd7 {[%clk 0:08:50]} 11. Kh2 {[%clk 0:09:02]}  f5 {[%clk 0:08:28]} 12. f4 {[%clk 0:08:46]}  Kh8 {[%clk 0:07:59]} 13. Nec3 {[%clk 0:08:45]}  Ng8 {[%clk 0:07:39]} 14. Bd2 {[%clk 0:08:40]}  Nd8 {[%clk 0:07:37]} 15. e4 {[%clk 0:08:27]}  c6 {[%clk 0:07:24]} 16. Ne3 {[%clk 0:08:21]}  Nf7 {[%clk 0:07:10]} 17. Qc2 {[%clk 0:08:07]}  Rae8 {[%clk 0:07:05]} 18. Rae1 {[%clk 0:08:07]}  Nf6 {[%clk 0:06:41]} 19. Ne2 {[%clk 0:07:42]}  Nh6 {[%clk 0:05:55]} 20. Bc3 {[%clk 0:07:31]}  Nh5 {[%clk 0:05:36]} 21. b4 {[%clk 0:07:04]}  fxe4 {[%clk 0:05:14]} 22. dxe4 {[%clk 0:06:55]}  exf4 {[%clk 0:04:56]} 23. Nxf4 {[%clk 0:06:55]}  Bxc3 {[%clk 0:04:37]} 24. Qxc3+ {[%clk 0:06:53]}  Ng7 {[%clk 0:04:38]} 25. c5 {[%clk 0:06:31]}  dxc5 {[%clk 0:04:28]} 26. Qxc5 {[%clk 0:06:30]}  Bxa2 {[%clk 0:03:55]} 27. Nxg6+ {[%clk 0:06:26]}  hxg6 {[%clk 0:03:50]} 28. Rxf8+ {[%clk 0:06:26]}  Rxf8 {[%clk 0:03:52]} 29. Qxf8+ {[%clk 0:06:27]}  Kh7 {[%clk 0:03:44]} 30. Rd1 {[%clk 0:06:27]}  Qe6 {[%clk 0:03:38]} 31. Rd8 {[%clk 0:06:12]}  Nf7 {[%clk 0:03:39]} 32. Qg8+ {[%clk 0:06:08]}  Kh6 {[%clk 0:03:38]} 33. Ng4+ {[%clk 0:06:05]} 1-0


[Site "Internet"]